fUSD/lending_fUSD_20250207
["ID","MTS","AMOUNT","RATE_DAILY","PERIOD"]
[352060462,1738915844571,-12038.67835489,0.00018596,2]
[352060464,1738915844580,-172861.9545074,0.00018596,2]
[352060466,1738915844589,-150.0,0.00018599,2]
[352060467,1738915844598,-583.5674736,0.000186,2]
[352060468,1738915844607,-150.0,0.00018601,2]
[352060469,1738915844616,-199.57186125,0.00018604,2]
[352060470,1738915844625,-150.0,0.00018615,2]
[352060471,1738915844634,-500.0,0.0001862,2]
[352060472,1738915844648,-500.0,0.0001862,2]
[352060473,1738915844669,-500.0,0.0001862,2]
[352060474,1738915844688,-500.0,0.0001862,2]
[352060476,1738915844698,-500.0,0.0001862,2]
[352060478,1738915844708,-500.0,0.0001862,2]
[352060480,1738915844716,-500.0,0.0001862,2]
[352060482,1738915844725,-583.86,0.0001862,2]
[352060484,1738915844735,-500.0,0.0001862,2]
[352060486,1738915844744,-500.0,0.0001862,2]
[352060488,1738915844754,-500.0,0.0001862,2]
[352060490,1738915844764,-438.34,0.0001862,2]
[352060492,1738915844774,-500.0,0.0001862,2]
[352060494,1738915844783,-500.0,0.0001862,2]
[352060496,1738915844793,-604.26,0.0001862,2]
[352060498,1738915844801,-500.0,0.0001862,2]
[352060500,1738915844814,-500.0,0.0001862,2]
[352060502,1738915844824,-500.0,0.0001862,2]
[352060504,1738915844833,-150.0,0.0001862,2]
[352060506,1738915844843,-500.0,0.0001862,2]
[352060508,1738915844852,-500.0,0.0001862,2]
[352060510,1738915844863,-500.0,0.0001862,2]
[352060512,1738915844873,-279.72,0.0001862,2]
[352060514,1738915844883,-500.0,0.0001862,2]
[352060516,1738915844894,-253.38043595,0.0001862,2]
[352060518,1738915844904,-500.0,0.0001862,2]
[352060520,1738915844914,-500.0,0.0001862,2]
[352060522,1738915844924,-500.0,0.0001862,2]
[352060525,1738915844934,-500.0,0.0001862,2]
[352060527,1738915844944,-500.0,0.0001862,2]
[352060529,1738915844954,-618.86996165,0.0001862,2]
[352060531,1738915844964,-500.0,0.0001862,2]
[352060533,1738915844974,-500.0,0.0001862,2]
[352060535,1738915844983,-500.0,0.00018621,2]
[352060537,1738915844992,-500.0,0.00018621,2]
[352060539,1738915845006,-385.8,0.00018621,2]
[352060541,1738915845016,-500.0,0.00018621,2]
[352060543,1738915845026,-500.0,0.00018621,2]
[352060545,1738915845035,-561.43,0.00018621,2]
[352060547,1738915845044,-500.0,0.00018621,2]
[352060548,1738915845055,-474.16,0.00018621,2]
[352060550,1738915845065,-150.0,0.00018642,2]
[352060552,1738915845075,-200.37,0.00018644,2]
[352060555,1738915845085,-2000.0,0.00018648,2]
[352060556,1738915845095,-500.0,0.00018648,2]
[352060558,1738915845105,-500.0,0.00018648,2]
[352060560,1738915845114,-200.0,0.00018648,2]
[352060562,1738915845124,-203725.58916117,0.0001865,2]
[352060564,1738915845133,-524.69852598,0.00018658,2]
[352060566,1738915845144,-4595.8964309,0.00018679,2]
[352060568,1738915845154,-12541.5609587,0.00018679,2]
[352060570,1738915845164,-14622.0,0.00018685,2]
[352060572,1738915845174,-4313.0959668,0.00018687,2]
[352060575,1738915845185,-4030.2955027,0.00018687,2]
[352060577,1738915845195,-3747.4950386,0.00018687,2]
[352060579,1738915845205,-11769.8378982,0.00018687,2]
[352060581,1738915845214,-10998.1148377,0.00018687,2]
[352060583,1738915845224,-10226.3917771,0.00018687,2]
[352060585,1738915845234,-608.84,0.00018691,2]
[352060587,1738915845244,-1585931.59378821,0.00018692,9]
[352060602,1738915845391,-1641849.17928,0.00018692,9]
[352060604,1738915845403,-1021520.0,0.00018692,9]
[352060606,1738915845414,-715.38310676,0.00018692,9]
[352060608,1738915845426,-43137.97335205,0.00018692,9]
[352060638,1738915845713,-500.0,0.00017798,2]
[352060641,1738915845723,-500.0,0.00017799,2]
[352060643,1738915845733,-500.0,0.00017935,2]
[352060645,1738915845743,-500.0,0.00017936,2]
[352060647,1738915845752,-500.0,0.00018072,2]
[352060649,1738915845762,-500.0,0.00018073,2]
[352060651,1738915845772,-500.0,0.00018209,2]
[352060653,1738915845781,-420.38638335,0.0001821,2]
[352060654,1738915845789,-500.0,0.00018346,2]
[352060656,1738915845799,-500.0,0.00018483,2]
[352060658,1738915845808,-500.0,0.0001862,2]
[352060660,1738915845817,-1079.89781215,0.00018692,9]
[352060663,1738915845829,-95876.580086,0.00018692,9]
[352060665,1738915845842,-490.36197175,0.00018692,9]
[352060702,1738915846251,-9194.92695687,0.00018692,9]
[352060705,1738915846271,-1121.02813651,0.00018692,9]
[352060710,1738915846308,-582.04956557,0.00018692,9]
[352060712,1738915846320,-497.14086209,0.00018692,9]
[352060714,1738915846331,-947.72946,0.00018692,9]
[352060738,1738915846566,-380.03,0.00017799,2]
[352060740,1738915846576,-45244.15578551,0.00018692,9]
[352060742,1738915846588,-1764.09695905,0.00018692,9]
[352060745,1738915846609,-4456.52425708,0.00018692,9]
[352060769,1738915846830,-830.12969053,0.00018692,2]
[352060771,1738915846842,-1523.87030947,0.00018692,2]
[352060773,1738915846851,-640517.2439721,0.00018692,9]
[352060775,1738915846864,-407.82269628,0.00018692,9]
[352060777,1738915846876,-256696.640001,0.00018692,9]
[352060779,1738915846887,-5131.70002938,0.00018692,9]
[352061382,1738916650651,-1020.2184,8.851e-05,2]
[352061414,1738917031502,-150.0,0.00014679,2]
[352061415,1738917031511,-379.56,0.00015031,2]
[352061416,1738917031520,-331.88,0.00015052,2]
[352061417,1738917031529,-150.0,0.00015759,2]
[352061418,1738917031538,-150.0,0.00016147,2]
[352061419,1738917031548,-500.0,0.00016508,2]
[352061420,1738917031557,-500.0,0.0001674,2]
[352061421,1738917031567,-10693.34917059,0.00016941,2]
[352061422,1738917031717,-10216.54082941,0.00016941,2]
[352061423,1738917031727,-325.03,0.00016992,2]
[352061424,1738917031738,-13984.59,0.00017056,2]
[352061425,1738917031747,-421.02,0.00017071,2]
[352061426,1738917031756,-1594.27,0.00017146,2]
[352061427,1738917031766,-4559.44,0.00017161,2]
[352061428,1738917031776,-1000.0,0.00017222,2]
[352061429,1738917031785,-331.88,0.00017316,2]
[352061430,1738917031794,-200.0,0.00017402,2]
[352061431,1738917031804,-200.0,0.00017412,2]
[352061432,1738917031814,-219.44,0.00017442,30]
[352061433,1738917031824,-174.51,0.00017615,2]
[352061434,1738917031833,-499.16,0.0001763,2]
[352061435,1738917031843,-178.593,0.00017783,2]
[352061436,1738917031852,-2965.929,0.00017783,2]
[352061437,1738917031861,-493.03103624,0.00017798,2]
[352061438,1738917031871,-556.53,0.00017798,2]
[352061439,1738917031880,-500.0,0.00017799,2]
[352061440,1738917031891,-500.0,0.00018071,2]
[352061441,1738917031900,-345.98500801,0.00018071,2]
[352061442,1738917031909,-500.0,0.00018071,2]
[352061443,1738917031919,-217.66,0.00018071,2]
[352061444,1738917031928,-630.62376672,0.00018071,2]
[352061446,1738917031937,-163.68,0.00018071,2]
[352061448,1738917031946,-527.60367029,0.00018071,2]
[352061449,1738917031956,-500.0,0.00018071,2]
[352061450,1738917031965,-500.0,0.00018071,2]
[352061451,1738917031974,-588.93485249,0.00018071,2]
[352061452,1738917031984,-168.38081092,0.00018071,2]
[352061453,1738917031994,-500.0,0.00018071,2]
[352061454,1738917032003,-500.0,0.00018071,2]
[352061455,1738917032013,-500.0,0.00018071,2]
[352061456,1738917032022,-500.0,0.00018071,2]
[352061457,1738917032031,-500.0,0.00018071,2]
[352061458,1738917032041,-500.0,0.00018071,2]
[352061459,1738917032050,-517.69,0.00018071,2]
[352061460,1738917032059,-500.0,0.00018071,2]
[352061461,1738917032069,-500.0,0.00018071,2]
[352061462,1738917032078,-571.91,0.00018071,2]
[352061463,1738917032087,-500.0,0.00018071,2]
[352061464,1738917032096,-500.0,0.00018071,2]
[352061465,1738917032105,-500.0,0.00018071,2]
[352061466,1738917032115,-500.0,0.00018071,2]
[352061467,1738917032124,-239.88,0.00018071,2]
[352061468,1738917032134,-507.25089197,0.00018071,2]
[352061469,1738917032143,-500.0,0.00018071,2]
[352061470,1738917032153,-500.0,0.00018071,2]
[352061471,1738917032162,-500.0,0.00018071,2]
[352061472,1738917032171,-493.99,0.00018071,2]
[352061473,1738917032180,-500.0,0.00018071,2]
[352061474,1738917032190,-500.0,0.00018071,2]
[352061475,1738917032199,-496.98230094,0.00018071,2]
[352061476,1738917032207,-500.0,0.00018071,2]
[352061477,1738917032216,-500.0,0.00018071,2]
[352061478,1738917032225,-500.0,0.00018071,2]
[352061479,1738917032235,-500.0,0.00018071,2]
[352061480,1738917032244,-500.0,0.00018071,2]
[352061481,1738917032254,-500.0,0.00018071,2]
[352061482,1738917032263,-500.0,0.00018071,2]
[352061483,1738917032272,-487.45393588,0.00018071,2]
[352061484,1738917032284,-105.02606412,0.00018071,2]
[352061485,1738917032426,-500.0,0.00018071,2]
[352061486,1738917032436,-500.0,0.00018071,2]
[352061487,1738917032446,-199.97393588,0.00018071,2]
[352061488,1738917032458,-300.02606412,0.00018071,2]
[352061489,1738917032468,-500.0,0.00018071,2]
[352061490,1738917032478,-500.0,0.00018071,2]
[352061491,1738917032488,-500.0,0.00018071,2]
[352061492,1738917032497,-500.0,0.00018071,2]
[352061493,1738917032507,-500.0,0.00018071,2]
[352061494,1738917032517,-500.0,0.00018071,2]
[352061495,1738917032527,-199.34486669,0.00018071,2]
[352061496,1738917032542,-300.65513331,0.00018071,2]
[352061497,1738917032551,-511.56,0.00018071,2]
[352061498,1738917032561,-500.0,0.00018071,2]
[352061499,1738917032571,-578.61062726,0.00018071,2]
[352061500,1738917032581,-3361.14511048,0.00018072,2]
[352061501,1738917032592,-1282.10129402,0.00018072,2]
[352061502,1738917032603,-258.57,0.00018072,2]
[352061507,1738917039630,-1000.0,0.000178,3]
[352061508,1738917039640,-382.28,0.00018071,2]
[352061509,1738917039650,-80605.34906369,0.00018072,2]
[352061510,1738917039662,-1743.3036,0.00018072,2]
[352061511,1738917039673,-19109.90641349,0.00018072,2]
[352061512,1738917039784,-31932.64536333,0.00018072,2]
[352061513,1738917039793,-500.0,0.00018073,2]
[352061514,1738917039803,-500.0,0.00018073,2]
[352061515,1738917039812,-500.0,0.00018075,2]
[352061516,1738917039822,-500.0,0.00018075,2]
[352061517,1738917039832,-500.0,0.00018075,2]
[352061518,1738917039841,-500.0,0.00018075,2]
[352061519,1738917039851,-500.0,0.00018075,2]
[352061520,1738917039860,-353.86,0.00018075,2]
[352061521,1738917039869,-500.0,0.00018075,2]
[352061522,1738917039879,-500.0,0.00018075,2]
[352061523,1738917039888,-500.0,0.00018075,2]
[352061524,1738917039898,-500.0,0.00018075,2]
[352061525,1738917039907,-350.24229292,0.00018075,2]
[352061526,1738917039917,-500.0,0.00018075,2]
[352061527,1738917039927,-500.0,0.00018075,2]
[352061528,1738917039936,-500.0,0.00018075,2]
[352061529,1738917039946,-500.0,0.00018075,2]
[352061530,1738917039956,-500.0,0.00018075,2]
[352061531,1738917039966,-273.55275104,0.00018075,2]
[352061532,1738917039975,-500.0,0.00018075,2]
[352061533,1738917039985,-500.0,0.00018075,2]
[352061534,1738917039995,-500.0,0.00018075,2]
[352061535,1738917040004,-500.0,0.00018075,2]
[352061536,1738917040014,-500.0,0.00018076,2]
[352061537,1738917040023,-500.0,0.00018076,2]
[352061538,1738917040033,-500.0,0.00018076,2]
[352061539,1738917040043,-500.0,0.00018076,2]
[352061540,1738917040053,-500.0,0.00018076,2]
[352061541,1738917040063,-500.0,0.00018076,2]
[352061542,1738917040073,-500.0,0.00018076,2]
[352061543,1738917040084,-500.0,0.00018076,2]
[352061544,1738917040094,-500.0,0.00018076,2]
[352061545,1738917040105,-500.0,0.00018076,2]
[352061546,1738917040116,-500.0,0.00018076,2]
[352061547,1738917040128,-500.0,0.00018076,2]
[352061548,1738917040140,-500.0,0.00018076,2]
[352061549,1738917040154,-500.0,0.00018076,2]
[352061550,1738917040165,-500.0,0.00018076,2]
[352061551,1738917040180,-500.0,0.00018076,2]
[352061552,1738917040192,-500.0,0.00018076,2]
[352061553,1738917040203,-500.0,0.00018076,2]
[352061554,1738917040216,-500.0,0.00018076,2]
[352061555,1738917040226,-500.0,0.00018076,2]
[352061556,1738917040238,-500.0,0.00018076,2]
[352061557,1738917040249,-500.0,0.00018076,2]
[352061558,1738917040258,-500.00000001,0.00018076,2]
[352061559,1738917040269,-500.0,0.00018076,2]
[352061560,1738917040279,-500.0,0.00018076,2]
[352061561,1738917040290,-500.0,0.00018076,2]
[352061562,1738917040301,-500.0,0.00018076,2]
[352061563,1738917040313,-500.0,0.00018076,2]
[352061564,1738917040325,-500.0,0.00018076,2]
[352061565,1738917040336,-500.0,0.00018076,2]
[352061566,1738917040346,-200000.0,0.00018077,5]
[352061567,1738917040357,-500.0,0.00018208,2]
[352061568,1738917040369,-348.85421368,0.00018208,2]
[352061569,1738917040380,-500.0,0.00018212,2]
[352061570,1738917040390,-500.0,0.00018212,2]
[352061571,1738917040410,-384.95014504,0.00018212,2]
[352061572,1738917040420,-500.0,0.00018212,2]
[352061573,1738917040431,-312.31,0.00018212,2]
[352061574,1738917040441,-500.0,0.00018212,2]
[352061575,1738917040454,-256.12,0.00018212,2]
[352061576,1738917040464,-500.0,0.00018212,2]
[352061577,1738917040475,-500.0,0.00018212,2]
[352061578,1738917040485,-500.0,0.00018212,2]
[352061579,1738917040497,-500.0,0.00018212,2]
[352061580,1738917040508,-152.16,0.00018212,2]
[352061581,1738917040519,-500.0,0.00018212,2]
[352061582,1738917040530,-500.0,0.00018212,2]
[352061583,1738917040541,-500.0,0.00018212,2]
[352061584,1738917040552,-500.0,0.00018212,2]
[352061585,1738917040562,-500.0,0.00018212,2]
[352061586,1738917040572,-500.0,0.00018212,2]
[352061587,1738917040581,-171.27,0.00018213,2]
[352061588,1738917040591,-500.0,0.00018213,2]
[352061589,1738917040601,-500.0,0.00018213,2]
[352061590,1738917040611,-500.0,0.00018213,2]
[352061591,1738917040620,-500.0,0.00018213,2]
[352061592,1738917040629,-500.0,0.00018213,2]
[352061593,1738917040637,-500.0,0.00018213,2]
[352061594,1738917040647,-500.0,0.00018213,2]
[352061595,1738917040662,-500.0,0.00018213,2]
[352061596,1738917040672,-500.0,0.00018213,2]
[352061597,1738917040681,-500.0,0.00018213,2]
[352061598,1738917040690,-500.0,0.00018213,2]
[352061599,1738917040700,-386.99412848,0.00018213,2]
[352061600,1738917040710,-500.0,0.00018213,2]
[352061601,1738917040720,-391.34,0.00018274,2]
[352061602,1738917040731,-300.0,0.00018274,2]
[352061603,1738917040741,-500.0,0.00018349,2]
[352061604,1738917040753,-500.0,0.00018349,2]
[352061605,1738917040766,-500.0,0.00018349,2]
[352061606,1738917040779,-294.06591445,0.00018349,2]
[352061607,1738917040791,-500.0,0.00018349,2]
[352061608,1738917040803,-500.0,0.00018349,2]
[352061609,1738917040814,-500.0,0.00018349,2]
[352061610,1738917040825,-500.0,0.00018349,2]
[352061611,1738917040836,-500.0,0.00018349,2]
[352061612,1738917040847,-500.0,0.00018349,2]
[352061613,1738917040859,-500.0,0.00018349,2]
[352061614,1738917040871,-500.0,0.00018349,2]
[352061615,1738917040883,-500.0,0.00018349,2]
[352061616,1738917040894,-500.0,0.00018349,2]
[352061617,1738917040908,-500.0,0.0001835,2]
[352061618,1738917040920,-500.0,0.0001835,2]
[352061619,1738917040931,-500.0,0.0001835,2]
[352061620,1738917040944,-500.0,0.0001835,2]
[352061621,1738917040956,-500.0,0.0001835,2]
[352061622,1738917040967,-500.0,0.0001835,2]
[352061623,1738917040979,-321.96,0.0001835,2]
[352061624,1738917040991,-500.0,0.0001835,2]
[352061625,1738917041001,-421.48,0.0001835,2]
[352061626,1738917041012,-500.0,0.0001835,2]
[352061627,1738917041022,-500.0,0.0001835,2]
[352061628,1738917041034,-500.0,0.0001835,2]
[352061629,1738917041046,-500.0,0.00018486,2]
[352061630,1738917041057,-500.0,0.00018486,2]
[352061631,1738917041069,-500.0,0.00018486,2]
[352061632,1738917041079,-598.28,0.00018486,2]
[352061633,1738917041091,-257.97,0.00018486,2]
[352061634,1738917041102,-500.0,0.00018486,2]
[352061635,1738917041113,-500.0,0.00018486,2]
[352061636,1738917041123,-500.0,0.00018486,2]
[352061637,1738917041135,-353.89707845,0.00018486,2]
[352061652,1738917042486,-146.10292155,0.00018486,2]
[352061654,1738917042496,-500.0,0.00018486,2]
[352061657,1738917042507,-500.0,0.00018486,2]
[352061659,1738917042518,-500.0,0.00018486,2]
[352061662,1738917042528,-500.0,0.00018486,2]
[352061664,1738917042539,-500.0,0.00018487,2]
[352061667,1738917042552,-500.0,0.00018487,2]
[352061668,1738917042566,-500.0,0.00018487,2]
[352061669,1738917042578,-308.63197175,0.00018487,2]
[352061670,1738917042588,-180.24,0.00018487,2]
[352061671,1738917042599,-362.3,0.00018487,2]
[352061672,1738917042610,-530.83132563,0.00018487,2]
[352061673,1738917042620,-500.0,0.00018487,2]
[352061674,1738917042631,-500.0,0.00018487,2]
[352061675,1738917042643,-263.08658862,0.00018487,2]
[352061676,1738917042658,-1703.43536801,0.000185,2]
[352061677,1738917042670,-2000.0,0.00018543,2]
[352061678,1738917042683,-500.0,0.00018543,2]
[352061679,1738917042696,-500.0,0.00018543,2]
[352061680,1738917042708,-500.0,0.00018599,2]
[352061681,1738917042718,-500.0,0.00018599,2]
[352061682,1738917042728,-500.0,0.00018599,2]
[352061683,1738917042738,-500.0,0.00018599,2]
[352061684,1738917042748,-500.0,0.00018599,2]
[352061685,1738917042758,-455.7822,0.00018599,2]
[352061686,1738917042768,-526.81566941,0.00018623,2]
[352061687,1738917042778,-500.0,0.00018623,2]
[352061688,1738917042789,-500.0,0.00018623,2]
[352061689,1738917042799,-500.0,0.00018623,2]
[352061690,1738917042810,-500.0,0.00018623,2]
[352061691,1738917042821,-500.0,0.00018623,2]
[352061692,1738917042831,-500.0,0.00018623,2]
[352061693,1738917042842,-500.0,0.00018623,2]
[352061694,1738917042852,-279.12294273,0.00018623,2]
[352061695,1738917042863,-500.0,0.00018623,2]
[352061696,1738917042873,-500.0,0.00018623,2]
[352061697,1738917042884,-236.4,0.00018624,2]
[352061698,1738917042895,-270.98,0.00018624,2]
[352061699,1738917042907,-500.0,0.00018624,2]
[352061701,1738917042918,-500.0,0.00018624,2]
[352061702,1738917042930,-500.0,0.00018624,2]
[352061703,1738917042943,-200.0,0.00018635,2]
[352061704,1738917042954,-209.78858364,0.0001864,2]
[352061705,1738917042964,-259.07453708,0.0001864,2]
[352061707,1738917042974,-197.80437876,0.0001864,3]
[352061709,1738917042985,-1155.86473735,0.00018688,3]
[352061712,1738917042995,-152.57,0.0001869,2]
[352061715,1738917043006,-152.57,0.0001869,2]
[352061717,1738917043016,-4000.0,0.00018692,2]
[352061719,1738917043027,-500.0,0.00018699,2]
[352061720,1738917043037,-163.38946282,0.00018699,2]
[352061722,1738917043048,-505.75438044,0.00018699,2]
[352061723,1738917043059,-505.08287208,0.00018699,2]
[352061726,1738917043069,-505.03202553,0.00018699,2]
[352061728,1738917043080,-504.28597289,0.00018699,2]
[352061730,1738917043091,-507.95954065,0.00018699,2]
[352061731,1738917043101,-500.0,0.00018699,2]
[352061732,1738917043111,-512.32763785,0.00018699,2]
[352061733,1738917043121,-500.0,0.00018699,2]
[352061734,1738917043131,-500.0,0.00018699,2]
[352061735,1738917043142,-500.0,0.00018699,2]
[352061736,1738917043154,-506.47773559,0.00018699,2]
[352061737,1738917043165,-347.17271533,0.00018699,2]
[352061738,1738917043175,-500.0,0.00018699,2]
[352061739,1738917043185,-501.35246189,0.00018699,2]
[352061740,1738917043196,-500.0,0.00018699,2]
[352061741,1738917043206,-459.04581236,0.00018699,2]
[352061742,1738917043217,-506.44982771,0.00018699,2]
[352061743,1738917043227,-500.0,0.00018699,2]
[352061744,1738917043238,-508.45193611,0.00018699,2]
[352061745,1738917043249,-999.0,0.00018699,2]
[352061746,1738917043259,-468.7352609,0.00018699,2]
[352061747,1738917043270,-500.0,0.00018699,2]
[352061748,1738917043281,-500.0,0.00018699,2]
[352061749,1738917043292,-453.19677378,0.00018699,2]
[352061750,1738917043302,-2115.0,0.000187,2]
[352061751,1738917043312,-5800.0,0.000187,2]
[352061752,1738917043322,-545.2818115,0.000187,2]
[352061753,1738917043473,-8500.0,0.000187,2]
[352061754,1738917043488,-732.0,0.000187,2]
[352061755,1738917043500,-746.0,0.000187,2]
[352061756,1738917043514,-136859.13579474,0.000187,2]
[352061757,1738917043536,-290000.0,0.000187,2]
[352061758,1738917043553,-347.17271533,0.000187,2]
[352061775,1738917045537,-3781.1298099,0.000187,2]
[352061776,1738917045548,-551.275395,0.000187,2]
[352061777,1738917045560,-344.52615895,0.000187,2]
[352061778,1738917045647,-7095.8639,0.000187,2]
[352061779,1738917045704,-2190954.56043734,0.000187,2]
[352061780,1738917045816,-76525.48278192,0.000187,2]
[352061781,1738917045827,-2133751.23595358,0.000187,2]
[352061782,1738917045838,-19748.67045156,0.000187,2]
[352061783,1738917045870,-524.07652098,0.000187,2]
[352061822,1738918231897,-313.74323492,0.00010137,2]
[352061823,1738918231909,-0.98676508,0.00010137,2]
[352061824,1738918231918,-161.25,0.00010137,2]
[352061825,1738918231929,-500.0,0.00015288,2]
[352061826,1738918231938,-298.69,0.00015482,2]
[352061827,1738918231949,-181.58237579,0.00016,60]
[352061828,1738918232055,-500.0,0.00016,60]
[352062157,1738918237571,-1996.23471448,0.00016,60]
[352062158,1738918237676,-668.18290973,0.00016,60]
[352062159,1738918237686,-150.0,0.00016493,2]
[352062160,1738918237697,-500.0,0.00016508,2]
[352062161,1738918237707,-295.80885,0.00016688,7]
[352062162,1738918237717,-314.73,0.00016813,2]
[352062163,1738918237727,-295.80885,0.00016888,7]
[352062164,1738918237741,-295.80885,0.00017088,7]
[352062165,1738918237751,-300.0,0.00017225,2]
[352062166,1738918237761,-1291.30054027,0.00017226,2]
[352062167,1738918237773,-9732.58794918,0.00017226,2]
[352062338,1738918239655,-322.310568,0.00017226,2]
[352062344,1738918239726,-947.72946,0.00017226,2]
[352062346,1738918239738,-411.85426204,0.00017226,2]
[352062348,1738918239752,-486.4037012,0.00017226,2]
[352062355,1738918239833,-321.5919,0.00017226,2]
[352062939,1738918245732,-5570.45453968,0.00017226,2]
[352062942,1738918245748,-291.6,0.00017226,2]
[352062954,1738918245839,-4524.16707963,0.00017226,2]
[352062956,1738918245849,-368.47,0.00017227,2]
[352062958,1738918245858,-1000.0,0.00017255,2]
[352062960,1738918245868,-1975.37,0.00017258,2]
[352062962,1738918245878,-1334.26,0.00017266,2]
[352062964,1738918245887,-295.80885,0.00017288,7]
[352062966,1738918245896,-643.39,0.00017296,2]
[352062968,1738918245907,-1196.0,0.000173,2]
[352062970,1738918245916,-204.16,0.00017421,2]
[352062972,1738918245926,-186.33,0.00017486,2]
[352062974,1738918245935,-295.80885,0.00017488,7]
[352062976,1738918245944,-4000.0,0.000175,30]
[352062978,1738918245953,-5741.32,0.00017566,2]
[352062980,1738918245962,-295.80885,0.00017688,7]
[352062982,1738918245971,-298.69,0.00017746,2]
[352062984,1738918245980,-118.63726616,0.000178,2]
[352062986,1738918245991,-255.20273384,0.000178,2]
[352062988,1738918246000,-372.33,0.000178,2]
[352062990,1738918246010,-378.86,0.000178,2]
[352062992,1738918246019,-377.97,0.000178,2]
[352062994,1738918246029,-377.05,0.000178,2]
[352062996,1738918246038,-370.7,0.000178,2]
[352062998,1738918246047,-382.36,0.000178,2]
[352063000,1738918246057,-370.54,0.000178,2]
[352063002,1738918246066,-380.9,0.000178,2]
[352063004,1738918246075,-373.69,0.000178,2]
[352063006,1738918246085,-375.92,0.000178,2]
[352063008,1738918246094,-208.46,0.00017856,30]
[352063010,1738918246104,-295.80885,0.00017888,7]
[352063012,1738918246113,-157.0,0.00018055,2]
[352063014,1738918246122,-419.75819112,0.00018075,2]
[352063016,1738918246131,-471.69359982,0.00018075,2]
[352063018,1738918246139,-295.80885,0.00018088,7]
[352063020,1738918246148,-295.80885,0.00018288,7]
[352063022,1738918246158,-200.0,0.000184,6]
[352063024,1738918246167,-152.0,0.00018456,3]
[352063025,1738918246176,-295.80885,0.00018488,7]
[352063027,1738918246186,-3000.0,0.0001849,30]
[352063029,1738918246195,-500.0,0.000185,6]
[352063031,1738918246206,-2372.743,0.0001855,2]
[352063033,1738918246215,-178.595,0.0001855,2]
[352063035,1738918246223,-2000.0,0.0001855,2]
[352063037,1738918246232,-500.0,0.0001855,2]
[352063039,1738918246245,-1024.37,0.000186,7]
[352063041,1738918246254,-800.0,0.000186,6]
[352063043,1738918246263,-295.80885,0.00018688,7]
[352063045,1738918246272,-500.0,0.00018699,2]
[352063046,1738918246281,-999.0,0.00018699,2]
[352063047,1738918246291,-315.76845325,0.00018699,2]
[352063048,1738918246300,-503.69244752,0.00018699,2]
[352063049,1738918246310,-500.0,0.00018699,2]
[352063050,1738918246319,-500.0,0.00018699,2]
[352063051,1738918246327,-500.0,0.00018699,2]
[352063052,1738918246337,-394.68029996,0.00018699,2]
[352063053,1738918246347,-500.0,0.00018699,2]
[352063054,1738918246356,-546.80140195,0.00018699,2]
[352063055,1738918246366,-500.0,0.00018699,2]
[352063057,1738918246376,-500.0,0.00018699,2]
[352063059,1738918246385,-500.0,0.00018699,2]
[352063061,1738918246395,-500.0,0.00018699,2]
[352063063,1738918246404,-75.89903484,0.00018699,2]
[352063150,1738918410050,-1971.973,8.256e-05,2]
[352063154,1738918612902,4928.2,8.973e-05,2]